bitfinex/quotes_ETHUSD_20250904
["timestamp","ask_amount","ask_price","bid_price","bid_amount"]
[1756944368683,0.6206,4460.8,4460.7,12.66136788]
[1756944368883,0.9943,4460.8,4460.7,16.41336788]
[1756944369062,0.6206,4460.8,4460.7,16.41336788]
[1756944369684,0.124,4460.8,4460.7,16.41336788]
[1756944371182,0.1736,4460.8,4460.7,16.41336788]
[1756944371483,0.1736,4460.8,4460.7,16.52536788]
[1756944371878,0.0746,4460.8,4460.7,16.81696788]
[1756944372084,0.0746,4460.8,4460.7,16.52536788]
[1756944372289,0.1756,4460.8,4460.7,16.52536788]
[1756944372582,0.0766,4460.8,4460.7,16.52536788]
[1756944376385,0.0766,4460.8,4460.7,17.74966788]
[1756944376558,0.002,4461.3,4461.2,6.03354935]
[1756944376883,0.002,4461.3,4461.2,12.11090429]
[1756944377082,0.002,4461.3,4461.2,13.33520429]
[1756944377284,0.002,4461.3,4461.2,19.13520429]
[1756944377693,0.101,4461.3,4461.2,17.91090429]
[1756944377862,0.101,4461.3,4461.2,14.15990429]
[1756944378193,0.101,4461.3,4461.2,14.91090429]
[1756944378388,0.5976,4461.3,4461.2,14.91090429]
[1756944379195,0.9713,4461.3,4461.2,11.274]
[1756944379890,0.9713,4461.3,4461.2,5.474]
[1756944380991,0.5976,4461.3,4461.2,5.474]
[1756944381389,0.5976,4461.3,4461.2,1.723]
[1756944381589,0.9713,4461.3,4461.2,5.474]
[1756944381892,3.21279911,4461.3,4461.2,5.474]
[1756944382091,3.88665583,4461.3,4461.2,5.474]
[1756944382390,0.101,4461.3,4461.2,5.474]
[1756944382587,0.5976,4461.3,4461.2,5.474]
[1756944382788,0.9713,4461.3,4461.2,5.474]
[1756944383189,3.21279911,4461.3,4461.2,5.474]
[1756944383761,3.21279911,4461.3,4461.2,1.723]
[1756944384176,3.21279911,4461.3,4461.2,5.474]
[1756944386077,3.21279911,4461.3,4461.2,3.751]
[1756944386681,3.32479911,4461.3,4461.2,3.751]
[1756944387193,2.24185087,4460.6,4460.5,1.723]
[1756944387400,3.32315087,4460.6,4460.5,5.474]
[1756944387695,6.32315087,4460.6,4460.5,3.751]
[1756944387994,2.24210219,4460.1,4460.0,0.001]
[1756944388200,2.35968715,4460.1,4460.0,3.752]
[1756944388499,3.32340219,4460.1,4460.0,3.752]
[1756944388994,3.997483,4460.1,4460.0,3.752]
[1756944390270,3.997483,4460.1,4460.0,0.001]
[1756944390488,3.997483,4460.1,4460.0,3.752]
[1756944390997,3.997483,4460.1,4460.0,0.001]
[1756944391495,6.997483,4460.1,4460.0,0.001]
[1756944393186,18.0860289,4460.1,4460.0,0.001]
[1756944393618,18.19884079,4460.1,4460.0,0.001]
[1756944395306,18.99084079,4460.1,4460.0,0.001]
[1756944396691,18.67329489,4460.1,4460.0,0.001]
[1756944397794,18.99084079,4460.1,4460.0,0.001]
[1756944398496,3.03435357,4459.6,4459.5,0.001]
[1756944398699,2.24250442,4459.3,4458.8,1e-08]
[1756944398897,0.1071,4458.9,4458.8,1e-08]
[1756944399104,6.97768496,4458.9,4458.8,1e-08]
[1756944399272,9.7142056,4458.9,4458.8,1e-08]
[1756944400070,10.0799056,4458.9,4458.8,1e-08]
[1756944402476,9.7142056,4458.9,4458.8,1e-08]
[1756944402676,16.2348056,4458.9,4458.8,1e-08]
[1756944402876,17.4174515,4458.9,4458.8,1e-08]
[1756944404479,18.2094515,4458.9,4458.8,1e-08]
[1756944405695,16.7342056,4458.9,4458.8,1e-08]
[1756944405897,17.0999056,4458.9,4458.8,1e-08]
[1756944406131,17.4174515,4458.9,4458.8,1e-08]
[1756944406804,17.4174515,4458.9,4458.8,0.00100001]
[1756944408221,17.0517515,4458.9,4458.8,0.00100001]
[1756944408731,2.2429068,4458.5,4458.3,0.001]
[1756944408927,9.11454207,4458.4,4458.3,0.001]
[1756944409091,16.2366571,4458.4,4458.3,0.001]
[1756944410628,17.416703,4458.4,4458.3,0.001]
[1756944410796,17.053603,4458.4,4458.3,0.001]
[1756944410994,16.554203,4458.4,4458.3,0.001]
[1756944411251,16.444503,4458.4,4458.3,0.001]
[1756944411387,16.1269571,4458.4,4458.3,0.739]
[1756944411800,16.1269571,4458.4,4458.3,0.001]
[1756944414888,16.732103,4458.4,4458.3,0.001]
[1756944416115,16.444503,4458.4,4458.3,0.739]
[1756944416489,16.444503,4458.4,4458.3,0.3109]
[1756944416681,16.444503,4458.4,4458.3,0.001]
[1756944416889,16.444503,4458.4,4458.3,0.3109]
[1756944417089,16.1269571,4458.4,4458.3,1.1983]
[1756944417812,16.1269571,4458.4,4458.3,0.739]
[1756944418401,16.1269571,4458.4,4458.3,0.3109]
[1756944418602,16.1269571,4458.4,4458.3,0.001]
[1756944420937,16.444503,4458.4,4458.3,0.001]
[1756944421741,16.444503,4458.4,4458.3,0.7462]
[1756944423548,16.444503,4458.4,4458.3,0.001]
[1756944423549,16.737203,4458.4,4458.3,0.001]
[1756944424714,17.199903,4458.4,4458.3,0.001]
[1756944424912,2.24340998,4457.5,4457.4,0.001]
[1756944425111,16.45054083,4457.5,4457.4,0.001]
[1756944425317,17.38225587,4457.5,4457.4,0.001]
[1756944425526,2.24371199,4456.9,4456.4,0.4442]
[1756944425853,9.31525789,4456.9,4456.4,0.4442]
[1756944426147,9.60575789,4456.9,4456.4,0.4442]
[1756944426349,9.71775789,4456.9,4456.4,0.4442]
[1756944427056,9.42725789,4456.9,4456.4,0.4442]
[1756944427751,9.42725789,4456.9,4456.4,0.9143]
[1756944427947,9.42725789,4456.9,4456.4,0.4701]
[1756944428147,9.42725789,4456.9,4456.8,0.7712]
[1756944428148,9.10971199,4456.9,4456.8,0.7712]
[1756944428451,9.10971199,4456.9,4456.8,1.2413]
[1756944428452,9.11071199,4456.9,4456.8,1.2413]
[1756944428954,2.35571199,4456.9,4456.8,1.2413]
[1756944429151,5.35571199,4456.9,4456.8,1.2413]
[1756944429357,0.112,4456.9,4456.8,1.2413]
[1756944429652,2.24316355,4458.0,4456.8,1.2413]
[1756944429653,3.755,4457.7,4456.8,1.36553]
[1756944429858,0.112,4457.1,4456.9,0.9143]
[1756944430068,0.112,4457.1,4457.0,0.301]
[1756944430240,0.112,4457.1,4457.0,1.2153]
[1756944435775,2.24336034,4457.6,4457.0,1.2153]
[1756944436083,0.112,4457.4,4457.1,0.9143]
[1756944436250,0.112,4457.4,4457.3,0.301]
[1756944436446,0.112,4457.4,4457.3,1.2153]
[1756944439750,2.07679099,4459.0,4457.3,1.33683]
[1756944440091,0.112,4458.2,4457.6,0.112]
[1756944440282,0.112,4458.2,4458.0,0.301]
[1756944440467,2.24310805,4458.1,4458.0,0.301]
[1756944440676,2.24316524,4458.0,4457.7,2.6393]
[1756944440863,2.24316524,4458.0,4457.7,2.1951]
[1756944441068,2.24316524,4458.0,4457.9,0.301]
[1756944441379,2.24316524,4458.0,4457.9,0.7452]
[1756944441584,2.35516524,4458.0,4457.9,0.7452]
[1756944442487,0.112,4458.0,4457.9,0.7452]
[1756944442684,0.112,4458.0,4457.9,1.2153]
[1756944444485,0.002,4458.3,4457.9,1.2153]
[1756944444688,0.112,4458.2,4458.0,0.9143]
[1756944444889,0.112,4458.2,4458.1,1.2153]
[1756944450406,0.112,4458.2,4458.1,4.74733805]
[1756944450602,0.002,4458.3,4458.2,2.24305773]
[1756944450813,0.002,4458.3,4458.2,6.8286]
[1756944450997,0.002,4458.3,4458.2,7.1252]
[1756944451392,0.002,4458.3,4458.2,1.3252]
[1756944451583,0.002,4458.3,4458.2,3.56825773]
[1756944451790,0.002,4458.3,4458.2,3.9484812]
[1756944452118,0.002,4458.3,4458.2,4.7404812]
[1756944453709,0.002,4458.3,4458.2,7.7404812]
[1756944454103,0.002,4458.3,4458.2,13.5404812]
[1756944458053,0.002,4458.3,4458.2,12.7484812]
[1756944458395,0.002,4458.3,4458.2,13.5404812]
[1756944458731,0.002,4458.3,4458.2,17.2934812]
[1756944462036,0.002,4458.3,4458.2,9.24365773]
[1756944462227,0.002,4458.3,4458.2,12.99665773]
[1756944462627,0.002,4458.3,4458.2,7.19665773]
[1756944462828,0.002,4458.3,4458.2,8.11325773]
[1756944463229,0.002,4458.3,4458.2,7.65955773]
[1756944464944,0.002,4458.3,4458.2,8.11325773]
[1756944465527,0.002,4458.3,4458.2,9.72889833]
[1756944465923,0.002,4458.3,4458.2,9.27519833]
[1756944466264,0.9626,4458.3,4457.7,1.725]
[1756944466417,2.24310805,4458.1,4457.8,3.753]
[1756944466614,0.1017,4457.9,4457.8,3.753]
[1756944466846,1.0726,4457.9,4457.8,3.753]
[1756944467441,0.7016,4457.9,4457.8,3.753]
[1756944470945,0.7016,4457.9,4457.1,0.112]
[1756944470946,1.07818496,4457.9,4457.1,0.112]
[1756944471131,0.112,4457.4,4457.2,3.753]
[1756944471331,0.7754,4457.3,4457.0,1.725]
[1756944471534,0.2875,4457.3,4457.1,3.753]
[1756944473261,0.112,4457.4,4457.1,3.753]
[1756944473461,0.112,4457.4,4457.2,0.2966]
[1756944473662,0.112,4457.4,4457.3,3.753]
[1756944474162,0.3985,4457.4,4457.3,3.753]
[1756944474364,0.112,4457.4,4457.3,3.753]
[1756944476838,0.211,4457.4,4457.3,3.753]
[1756944478569,0.112,4457.4,4457.3,3.753]
[1756944478941,0.112,4457.4,4457.3,4.9662]
[1756944479140,0.112,4457.4,4457.3,7.20971064]
[1756944479335,0.112,4457.6,4457.3,7.20971064]
[1756944479541,0.112,4457.6,4457.4,0.9166]
[1756944479840,0.112,4457.6,4457.5,3.753]
[1756944480041,0.112,4457.6,4457.5,4.0601]
[1756944480242,0.112,4457.6,4457.5,4.523]
[1756944480644,0.112,4457.6,4457.5,4.9828]
[1756944480838,0.112,4457.6,4457.5,7.22620998]
[1756944481263,0.002,4457.9,4457.5,7.22620998]
[1756944481453,0.114,4457.9,4457.5,6.76330998]
[1756944481642,0.114,4457.9,4457.6,0.4629]
[1756944481843,0.114,4457.9,4457.7,3.753]
[1756944482044,0.114,4457.9,4457.8,0.3071]
[1756944482570,0.002,4457.9,4457.8,1.2298]
[1756944482950,0.002,4457.9,4457.8,0.77]
[1756944483369,0.002,4457.9,4457.8,0.3071]
[1756944483667,0.002,4457.9,4457.8,0.77]
[1756944484067,0.002,4457.9,4457.8,0.3071]
[1756944485376,0.002,4457.9,4457.8,0.77]
[1756944490276,0.002,4457.9,4457.8,1.2298]
[1756944493580,0.002,4457.9,4457.8,4.31886982]
[1756944496692,0.002,4457.9,4457.8,5.11086982]
[1756944497106,0.002,4457.9,4457.8,1.15291082]
[1756944497421,0.002,4457.9,4457.8,4.1721]
[1756944497730,0.002,4457.9,4457.8,6.415359]
[1756944498112,0.002,4457.9,4457.8,6.108259]
[1756944498618,0.002,4457.9,4457.8,6.878259]
[1756944498817,0.002,4457.9,4457.8,7.338059]
[1756944499231,0.002,4457.9,4457.8,8.29620072]
[1756944499610,0.002,4457.9,4457.8,1.37724172]
[1756944499920,0.101,4457.9,4457.8,3.865]
[1756944500113,0.002,4457.9,4457.8,3.865]
[1756944500309,0.002,4457.9,4457.8,6.415359]
[1756944500525,0.002,4457.9,4457.8,7.338059]
[1756944501200,0.002,4457.9,4457.8,6.878259]
[1756944503605,0.002,4457.9,4457.8,4.1721]
[1756944503813,0.002,4457.9,4457.8,3.865]
[1756944504632,0.002,4457.9,4457.8,6.108259]
[1756944505032,0.002,4457.9,4457.8,6.415359]
[1756944505244,0.002,4457.9,4457.8,6.878259]
[1756944505610,0.002,4457.9,4457.8,7.338059]
[1756944505807,0.002,4457.9,4457.8,3.865]
[1756944506002,0.002,4457.9,4457.8,4.1721]
[1756944506429,0.002,4457.9,4457.8,6.415359]
[1756944506923,0.002,4457.9,4457.8,4.635]
[1756944507128,0.002,4457.9,4457.8,4.1721]
[1756944507636,0.002,4457.9,4457.8,6.415359]
[1756944507835,0.002,4457.9,4457.8,4.635]
[1756944508215,0.002,4457.9,4457.8,4.1721]
[1756944509028,0.002,4457.9,4457.8,6.415359]
[1756944509234,0.002,4457.9,4457.8,6.878259]
[1756944509429,0.002,4457.9,4457.8,4.635]
[1756944509952,0.002,4457.9,4457.8,4.1721]
[1756944510152,0.002,4457.9,4457.8,3.865]
[1756944511475,0.002,4457.9,4457.8,5.59]
[1756944512860,0.002,4457.9,4457.8,1.837]
[1756944513065,0.002,4457.9,4457.8,5.589]
[1756944514169,0.002,4457.9,4457.8,8.581359]
[1756944514554,0.002,4457.9,4457.8,4.829359]
[1756944514764,0.002,4457.9,4457.8,6.3381]
[1756944515635,0.002,4457.9,4457.8,6.7994]
[1756944516659,0.002,4457.9,4457.8,9.042659]
[1756944517564,0.002,4457.9,4457.8,6.7994]
[1756944517855,0.002,4457.9,4457.8,9.042659]
[1756944518761,0.002,4457.9,4457.8,6.7994]
[1756944519128,0.002,4457.9,4457.8,9.042659]
[1756944519527,0.002,4457.9,4457.8,11.54326285]
[1756944519829,0.002,4458.3,4458.2,3.03505773]
[1756944520134,0.002,4458.3,4458.2,6.89905773]
[1756944520326,0.002,4458.3,4458.2,4.35745773]
[1756944520527,0.002,4458.3,4458.2,8.10945773]
[1756944520830,0.002,4458.3,4458.2,9.15370523]
[1756944523866,0.002,4458.3,4458.2,14.95370523]
[1756944532184,0.002,4458.3,4458.2,9.15370523]
[1756944534493,0.002,4458.3,4458.2,8.69240523]
[1756944536096,0.002,4458.3,4458.2,9.15370523]
[1756944537574,0.002,4458.9,4458.3,2.24300742]
[1756944537778,0.002,4458.9,4458.7,3.14680619]
[1756944537977,0.002,4458.9,4458.7,8.92960619]
[1756944538369,0.002,4458.9,4458.7,8.62180619]
[1756944538797,0.002,4458.9,4458.7,8.92960619]
[1756944538998,0.002,4458.9,4458.7,9.83220619]
[1756944539202,0.002,4458.9,4458.7,11.14831061]
[1756944541793,0.3397,4458.8,4458.7,1.836]
[1756944541973,0.9595,4458.8,4458.7,5.587]
[1756944542592,0.9595,4458.8,4458.7,5.475]
[1756944543483,0.7973,4458.8,4457.7,0.3397]
[1756944543679,2.24308115,4458.2,4457.4,0.3366]
[1756944543885,1.1148459,4458.8,4457.5,3.735]
[1756944543886,0.112,4458.0,4457.5,3.735]
[1756944544084,0.099,4457.6,4457.5,3.735]
[1756944544408,0.5566,4457.6,4457.5,3.735]
[1756944545580,0.099,4457.6,4457.5,3.735]
[1756944547814,0.5566,4457.6,4457.5,3.735]
[1756944548328,0.099,4457.6,4457.5,3.735]
[1756944549902,2.3551607,4458.0,4457.5,3.735]
[1756944549903,0.112,4458.0,4457.5,3.735]
[1756944550304,0.099,4457.6,4457.5,3.735]
[1756944554428,0.4576,4457.9,4457.5,3.735]
[1756944554725,0.1017,4457.6,4457.5,3.735]
[1756944556010,0.1017,4457.6,4457.4,0.113]
[1756944556333,0.1017,4457.6,4457.5,3.751]
[1756944557341,0.112,4458.0,4457.5,3.751]
[1756944557632,0.5696,4458.0,4457.5,3.751]
[1756944557839,0.5696,4458.0,4457.5,5.99440394]
[1756944558028,0.112,4458.0,4457.5,5.99440394]
[1756944558330,0.112,4458.0,4457.5,3.751]
[1756944558532,0.5696,4458.0,4457.5,3.751]
[1756944559140,2.81276178,4458.0,4457.5,3.751]
[1756944559842,2.81276178,4458.0,4457.4,0.113]
[1756944560048,2.81276178,4458.0,4457.6,3.751]
[1756944560419,0.099,4457.7,4457.6,3.751]
[1756944562922,0.5696,4458.0,4457.6,3.751]
[1756944563357,2.24321629,4457.9,4457.5,0.001]
[1756944563520,2.24321629,4457.9,4457.6,3.751]
[1756944563715,2.81276115,4458.0,4457.6,3.751]
[1756944563923,2.81276115,4458.0,4457.5,0.001]
[1756944564123,0.5696,4458.0,4457.6,3.75]
[1756944564724,0.112,4458.0,4457.6,3.75]
[1756944565051,0.112,4458.0,4457.5,0.001]
[1756944565245,0.112,4458.0,4457.7,3.75]
[1756944566252,0.112,4458.0,4457.5,0.001]
[1756944566253,2.24335965,4457.6,4457.5,0.001]
[1756944566562,2.35535965,4457.6,4457.5,0.001]
[1756944566849,2.91465965,4457.6,4457.5,0.001]
[1756944568453,3.28565965,4457.6,4457.5,0.001]
[1756944569174,2.91465965,4457.6,4457.5,0.001]
[1756944572362,3.28565965,4457.6,4457.5,0.001]
[1756944572666,3.29124461,4457.6,4457.5,0.001]
[1756944572832,3.37559549,4457.6,4457.5,0.001]
[1756944573034,3.38118045,4457.6,4457.5,0.001]
[1756944573360,3.69314139,4457.6,4457.5,0.001]
[1756944573534,3.37559549,4457.6,4457.5,0.001]
[1756944574360,3.00459549,4457.6,4457.5,0.001]
[1756944574740,2.54699549,4457.6,4457.5,0.001]
[1756944575360,2.44529549,4457.6,4457.5,0.001]
[1756944575567,2.54429549,4457.6,4457.5,0.001]
[1756944575768,3.37528045,4457.6,4457.5,0.001]
[1756944576363,3.00158045,4457.6,4457.5,0.001]
[1756944576563,2.54429549,4457.6,4457.5,0.001]
[1756944577073,2.44529549,4457.6,4457.5,0.001]
[1756944578665,2.44529549,4457.6,4457.5,0.2994]
[1756944578965,0.002,4458.4,4457.5,4.9559]
[1756944579271,0.002,4458.4,4457.6,0.9055]
[1756944579272,2.24301825,4458.3,4457.6,0.9055]
[1756944579455,2.24301825,4458.3,4458.2,0.2984]
[1756944579964,2.35501825,4458.3,4458.2,0.2984]
[1756944580454,2.35501825,4458.3,4458.2,0.7419]
[1756944581174,0.112,4458.3,4458.2,1.2039]
[1756944581343,2.35500742,4458.3,4458.2,1.2039]
[1756944581671,2.24307041,4458.2,4457.9,0.4435]
[1756944581972,2.24310805,4458.1,4457.6,0.462]
[1756944582167,2.24310805,4458.1,4458.0,0.2984]
[1756944582472,2.24306111,4458.2,4457.7,0.9055]
[1756944582671,0.00558496,4458.1,4457.7,0.4435]
[1756944582965,0.00558496,4458.1,4457.7,3.75]
[1756944582966,2.24327169,4457.8,4457.7,3.75]
[1756944583171,2.34227169,4457.8,4457.7,3.75]
[1756944583338,2.24335965,4457.6,4457.5,5.476]
[1756944583538,0.112,4457.9,4457.5,5.476]
[1756944583738,0.112,4457.9,4457.5,5.7744]
[1756944584202,2.24335965,4457.6,4457.5,5.7744]
[1756944584852,2.24329992,4457.8,4457.5,5.7744]
[1756944585055,2.24331301,4457.7,4457.5,6.2179]
[1756944585455,2.24335965,4457.6,4457.5,2.4679]
[1756944585654,2.24335965,4457.6,4457.5,6.2179]
[1756944586194,2.24332064,4457.7,4457.5,6.2179]
[1756944588991,2.24332064,4457.7,4457.5,5.7744]
[1756944589202,8.64834461,4457.6,4456.8,1e-08]
[1756944589411,2.24371199,4456.9,4456.8,1e-08]
[1756944589701,6.34631918,4456.9,4456.8,1e-08]
[1756944589879,10.26513422,4456.9,4456.8,1e-08]
[1756944594501,9.89413422,4456.9,4456.8,1e-08]
[1756944595494,10.26513422,4456.9,4456.8,1e-08]
[1756944595793,10.26513422,4456.9,4456.8,0.00100001]
[1756944596874,9.44243422,4456.9,4456.8,0.00100001]
[1756944598506,16.91213421,4456.9,4456.8,0.00100001]
[1756944599220,17.02413421,4456.9,4456.8,0.00100001]
[1756944599714,16.57243421,4456.9,4456.8,0.00100001]
[1756944602009,17.03233421,4456.9,4456.8,0.00100001]
[1756944602610,17.40333421,4456.9,4456.8,0.00100001]
[1756944603314,17.68771456,4456.9,4456.8,0.00100001]
[1756944604214,2.24386303,4456.6,4456.5,1e-08]
[1756944604416,18.08647021,4456.6,4456.5,1e-08]
[1756944604620,19.12548525,4456.6,4456.5,1e-08]
[1756944604913,19.21545568,4456.6,4456.5,1e-08]
[1756944605094,18.84715568,4456.6,4456.5,1e-08]
[1756944606982,19.21545568,4456.6,4456.5,1e-08]
[1756944607179,19.21545568,4456.6,4454.8,0.025]
[1756944607180,0.792,4456.4,4454.8,0.5027]
[1756944607392,2.24431626,4455.7,4455.0,0.4383]
[1756944607684,16.58202344,4455.7,4455.0,0.4383]
[1756944607920,16.57643848,4455.7,4455.0,0.4383]
[1756944608121,17.03633848,4455.7,4455.0,0.4383]
[1756944609922,16.57643848,4455.7,4455.1,0.4383]
[1756944611296,16.46933848,4455.7,4455.6,0.752]
[1756944611506,13.12631625,4455.7,4455.6,1.2297]
[1756944612198,13.12631625,4455.7,4455.6,0.752]
[1756944612733,13.12631625,4455.7,4455.6,1.2297]
[1756944613926,9.37431625,4455.7,4455.6,1.2297]
[1756944614524,6.10931626,4455.7,4455.6,1.2297]
[1756944616338,2.35631626,4455.7,4455.6,1.2297]
[1756944619238,2.35631626,4455.7,4455.6,0.001]
[1756944619239,5.45531626,4455.7,4455.6,0.001]
[1756944619438,11.99793849,4455.7,4455.6,0.001]
[1756944623549,12.78993849,4455.7,4455.6,0.001]
[1756944624395,12.78993849,4455.7,4455.1,1e-08]
[1756944624396,2.24456814,4455.2,4455.1,1e-08]
[1756944624592,9.00056814,4455.2,4455.1,1e-08]
[1756944624798,10.25427371,4455.2,4455.1,1e-08]
[1756944625096,2.24476968,4454.8,4454.7,0.001]
[1756944625297,9.00635464,4454.8,4454.7,0.001]
[1756944625452,9.10516968,4454.8,4454.7,0.001]
[1756944625889,5.24476968,4454.8,4454.7,0.3137]
[1756944626061,3.756,4455.1,4454.7,1.2297]
[1756944626261,3.756,4455.1,4454.8,0.916]
[1756944626472,6.00061852,4455.1,4455.0,0.3127]
[1756944626688,6.00061852,4455.1,4455.0,1.2287]
[1756944627054,2.24476968,4454.8,4454.7,0.001]
[1756944627363,6.32946021,4454.8,4454.7,0.001]
[1756944627577,9.42557525,4454.8,4454.7,0.001]
[1756944628866,9.32387525,4454.8,4454.7,0.001]
[1756944629289,9.43587525,4454.8,4454.7,0.001]
[1756944629493,9.76081368,4454.8,4454.7,0.001]
[1756944629685,9.53757525,4454.8,4454.7,0.001]
[1756944630076,11.26357525,4454.8,4454.7,0.001]
[1756944630575,11.16187525,4454.8,4454.7,0.001]
[1756944630906,11.26087525,4454.8,4454.7,0.001]
[1756944632267,11.16187525,4454.8,4454.7,0.001]
[1756944632590,11.45617525,4454.8,4454.7,0.001]
[1756944633593,11.94147525,4454.8,4454.7,0.001]
[1756944633963,11.62036968,4454.8,4454.7,0.001]
[1756944634413,11.13506968,4454.8,4454.7,0.001]
[1756944635106,10.84076968,4454.8,4454.7,0.001]
[1756944635302,11.45507525,4454.8,4454.7,0.001]
[1756944635607,11.94037525,4454.8,4454.7,0.001]
[1756944635906,12.03038678,4454.8,4454.7,0.001]
[1756944636104,11.54508678,4454.8,4454.7,0.001]
[1756944638081,11.25188678,4454.8,4454.7,0.001]
[1756944638478,10.93078121,4454.8,4454.7,0.7733]
[1756944640884,10.93078121,4454.8,4454.7,1.2358]
[1756944641604,10.93278121,4454.8,4454.7,1.2358]
[1756944641787,10.93278121,4454.8,4454.7,0.7745]
[1756944641989,10.93278121,4454.8,4454.7,0.7733]
[1756944642393,10.93278121,4454.8,4454.7,1.2358]
[1756944645994,10.93278121,4454.8,4454.7,0.7733]
[1756944646194,11.25388678,4454.8,4454.7,0.312]
[1756944646590,11.25388678,4454.8,4454.7,0.7733]
[1756944647613,11.25388678,4454.8,4454.7,0.001]
[1756944647802,11.35288678,4454.8,4454.7,0.001]
[1756944648701,11.25388678,4454.8,4454.7,0.001]
[1756944649297,11.25588678,4454.8,4454.7,0.001]
[1756944649699,10.93478121,4454.8,4454.7,1.2358]
[1756944649898,10.93178121,4454.8,4454.7,1.2358]
[1756944650324,10.93178121,4454.8,4454.7,0.4623]
[1756944650526,11.35188678,4454.8,4454.7,0.001]
[1756944652245,11.25288678,4454.8,4454.7,0.001]
[1756944652815,11.25288678,4454.8,4454.7,0.312]
[1756944653541,11.25288678,4454.8,4454.7,0.7733]
[1756944653841,11.25288678,4454.8,4454.7,1.2358]
[1756944654732,7.17478121,4454.8,4454.7,1.2358]
[1756944654932,7.93278121,4454.8,4454.7,1.2358]
[1756944655302,6.20678121,4454.8,4454.7,1.2358]
[1756944655704,2.44878121,4454.8,4454.7,1.2358]
[1756944655903,6.20678121,4454.8,4454.7,1.2358]
[1756944657235,2.44878121,4454.8,4454.7,1.2358]
[1756944659449,6.20578121,4454.8,4454.7,0.001]
[1756944659623,6.62588678,4454.8,4454.7,0.001]
[1756944661041,6.52688678,4454.8,4454.7,0.001]
[1756944661236,6.52688678,4454.8,4454.7,0.299]
[1756944661462,6.20578121,4454.8,4454.7,1.2179]
[1756944661631,2.44878121,4454.8,4454.7,1.2179]
[1756944667756,6.20978121,4454.8,4454.7,0.001]
[1756944667955,9.62988678,4454.8,4454.7,0.001]
[1756944668161,10.08198678,4454.8,4454.7,0.001]
[1756944673970,9.62988678,4454.8,4454.7,0.001]
[1756944675801,9.53088678,4454.8,4454.7,0.299]
[1756944676102,9.53088678,4454.8,4454.7,0.7426]
[1756944676799,9.53088678,4454.8,4454.7,0.299]
[1756944677405,9.53088678,4454.8,4454.7,0.001]
[1756944680815,9.53088678,4454.8,4454.7,0.299]
[1756944681114,9.53088678,4454.8,4454.7,0.001]
[1756944684412,16.54888677,4454.8,4454.7,0.001]
[1756944684926,13.2227812,4454.8,4454.7,1.2179]
[1756944685127,2.44878121,4454.8,4454.7,1.2179]
[1756944692946,2.86888678,4454.8,4454.7,0.001]
[1756944693249,2.76988678,4454.8,4454.7,0.001]
[1756944693445,2.76988678,4454.8,4454.7,0.29]
[1756944693644,2.44878121,4454.8,4454.7,0.7536]
[1756944695148,2.44878121,4454.8,4454.7,1.237]
[1756944699423,2.44878121,4454.8,4454.7,0.001]
[1756944700455,2.44878121,4454.8,4454.7,0.29]
[1756944700667,2.44878121,4454.8,4454.7,0.7536]
[1756944701047,2.44878121,4454.8,4454.7,1.237]
[1756944702123,9.4667812,4454.8,4454.7,1.237]
[1756944702549,9.4667812,4454.8,4454.7,0.7536]
[1756944703640,9.4667812,4454.8,4454.7,0.001]
[1756944704153,9.4667812,4454.8,4454.7,0.29]
[1756944704459,9.78788677,4454.8,4454.7,0.001]
[1756944705230,9.78788677,4454.8,4454.7,0.29]
[1756944705470,9.78788677,4454.8,4454.7,0.7536]
[1756944705767,9.78788677,4454.8,4454.7,0.29]
[1756944706469,9.78788677,4454.8,4454.7,0.7536]
[1756944707767,9.78788677,4454.8,4454.7,0.29]
[1756944708077,9.88688677,4454.8,4454.7,0.001]
[1756944708754,9.4667812,4454.8,4454.7,1.237]
[1756944711571,9.4667812,4454.8,4454.7,0.7536]
[1756944714381,9.78788677,4454.8,4454.7,0.001]
[1756944714678,10.10288677,4454.8,4454.7,0.001]
[1756944715737,9.78788677,4454.8,4454.7,0.29]
[1756944715853,9.4667812,4454.8,4454.7,1.237]
[1756944719281,9.4667812,4454.8,4454.7,0.7536]
[1756944719901,0.002,4455.3,4454.7,1.237]
[1756944720098,0.002,4455.3,4454.9,2.24467124]
[1756944720398,0.002,4455.3,4455.0,0.67937882]
[1756944720598,0.002,4455.3,4455.2,0.3086]
[1756944720898,0.002,4455.3,4455.2,2.55316814]
[1756944721100,0.002,4455.3,4455.2,4.23946814]
[1756944726493,0.002,4455.3,4455.2,7.99246814]
[1756944726690,0.002,4455.3,4455.2,9.66411923]
[1756944738688,0.002,4455.7,4455.6,0.792]
[1756944738901,0.002,4455.7,4455.6,8.64981029]
[1756944739215,0.002,4455.7,4455.6,18.63026663]
[1756944739375,0.002,4455.7,4455.6,18.72019944]
[1756944739712,0.002,4455.7,4455.6,16.97373331]
[1756944740013,0.002,4455.7,4455.6,20.72673331]
[1756944755053,0.002,4456.2,4456.1,6.0361148]
[1756944755366,0.002,4456.2,4456.1,9.7871148]
[1756944755583,0.002,4456.2,4456.1,11.1399148]
[1756944755755,0.002,4456.2,4456.1,18.27832783]
[1756944759452,0.002,4456.7,4456.2,0.792]
[1756944759653,0.002,4456.9,4456.7,0.792]
[1756944759970,0.002,4456.9,4456.7,11.81631268]